bitfinex/quotes_ETHUSD_20260228
["timestamp","ask_amount","ask_price","bid_price","bid_amount"]
[1772298923797,0.12447938,1901.9,1901.2,2.37018269]
[1772298923798,2.58270404,1901.9,1901.2,2.37018269]
[1772298924461,3.89719373,1901.9,1901.3,3.6850725]
[1772298924661,2.58270404,1901.8,1901.3,3.6850725]
[1772298926989,3.897255,1901.8,1901.4,2.37018269]
[1772298927286,2.58270404,1901.8,1901.4,2.37018269]
[1772298928887,2.58270404,1901.8,1901.5,1.31475151]
[1772298929777,2.58270404,1902.0,1901.5,3.6849342]
[1772298930482,0.001,1901.7,1901.5,3.6849342]
[1772298933367,0.001,1901.7,1901.6,2.37018269]
[1772298935080,2.58270404,1902.0,1901.6,2.37018269]
[1772298935286,2.58270404,1902.0,1901.6,3.68480889]
[1772298935495,2.58270404,1901.9,1901.5,1.31468703]
[1772298936501,2.58270404,1901.9,1901.6,2.37018269]
[1772298939099,3.8970477,1902.1,1901.6,3.68480874]
[1772298940303,2.58270404,1902.0,1901.6,3.68480874]
[1772298941082,2.58270404,1902.0,1901.6,1.31462605]
[1772298941278,1.31441676,1902.0,1901.5,2.37018269]
[1772298941482,2.58270404,1901.9,1901.5,2.37018269]
[1772298944508,2.58270404,1901.9,1901.6,1.31578237]
[1772298945211,2.58370404,1901.9,1901.6,1.31578237]
[1772298945382,2.58370404,1901.9,1901.6,2.03513185]
[1772298945593,0.002,1902.2,1901.9,2.2731786]
[1772298945901,2.41165262,1902.0,1901.6,0.0011]
[1772298946090,2.41165262,1902.0,1901.6,2.2742786]
[1772298947115,3.72608113,1902.0,1901.6,3.58890803]
[1772298947422,2.44805505,1902.1,1901.7,0.71934948]
[1772298947594,2.45005505,1902.2,1901.9,0.71934948]
[1772298947781,2.44805505,1902.1,1901.7,3.02607817]
[1772298948204,2.44805505,1902.1,1901.9,0.71934948]
[1772298948796,2.45005505,1902.2,1901.9,0.71934948]
[1772298948994,2.45005505,1902.2,1901.9,2.03377147]
[1772298950194,2.44805505,1902.1,1901.7,1.31456581]
[1772298951115,2.44805505,1902.1,1901.7,4.34064398]
[1772298951319,2.44805505,1902.1,1901.7,3.6212945]
[1772298952684,2.44805505,1902.0,1901.7,3.62133591]
[1772298952887,2.44805505,1902.0,1901.7,1.31460722]
[1772298955886,0.002,1902.2,1901.8,2.30672869]
[1772298956214,0.002,1902.2,1902.0,2.30672869]
[1772298957401,6.04445564,1902.1,1901.6,0.0011]
[1772298957602,2.44805505,1902.0,1901.6,0.0011]
[1772298957918,2.44805505,1901.6,1901.3,0.0011]
[1772298958093,2.44805505,1901.6,1900.9,3.62294743]
[1772298959996,3.76273742,1901.6,1901.5,0.0011]
[1772298960192,2.44805505,1901.5,1900.9,3.62294743]
[1772298960725,2.44805505,1901.4,1900.9,0.0011]
[1772298960902,2.44805505,1901.4,1900.9,3.62298469]
[1772298961106,2.44805505,1901.4,1901.0,2.30672869]
[1772298961793,2.44805505,1901.7,1901.0,2.30672869]
[1772298961988,2.44805505,1901.6,1901.1,1.31502814]
[1772298962193,2.44805505,1901.6,1900.9,0.0011]
[1772298963204,2.44805505,1901.6,1900.8,0.0011]
[1772298964009,2.44805505,1901.2,1900.8,0.0011]
[1772298966227,2.44805505,1901.0,1900.8,0.0011]
[1772298966797,2.44805505,1901.0,1900.6,3.87592329]
[1772298967000,2.44805505,1901.0,1900.3,1.31668015]
[1772298968547,2.44805505,1900.8,1900.3,1.31668015]
[1772298970505,3.76335993,1900.7,1900.3,0.0011]
[1772298970705,2.44805505,1900.6,1900.3,0.0011]
[1772298971702,2.44805505,1900.6,1900.4,0.0011]
[1772298972615,2.44805505,1901.0,1900.4,2.23628517]
[1772298972935,2.44805505,1901.1,1900.4,2.23628517]
[1772298973836,2.44805505,1901.0,1900.4,0.0011]
[1772298974008,2.44805505,1900.8,1900.4,0.0011]
[1772298974204,2.44805505,1900.8,1900.3,0.0011]
[1772298974730,3.76335993,1900.7,1900.3,0.0011]
[1772298975030,2.44805505,1900.6,1900.3,0.0011]
[1772298977036,2.28525656,1900.8,1900.3,2.20199032]
[1772298977339,4.56225656,1901.0,1900.4,3.28118476]
[1772298977839,2.28525656,1900.9,1900.4,3.28118476]
[1772298978336,2.28525656,1901.1,1900.6,3.2736503]
[1772298979204,2.28525656,1901.1,1900.7,1.31530488]
[1772298979411,3.59090308,1901.3,1900.8,3.26617835]
[1772298979605,2.276,1901.3,1900.8,3.26617835]
[1772298980030,3.60013391,1901.4,1900.9,2.17846341]
[1772298980031,2.28525656,1901.4,1900.9,2.17846341]
[1772298980311,3.59996421,1901.6,1900.9,2.17846341]
[1772298980644,3.59996421,1901.6,1901.0,3.25139369]
[1772298980819,2.28525656,1901.5,1901.0,1.08029444]
[1772298981137,2.28525656,1901.5,1900.8,3.25139369]
[1772298981435,1.31468593,1901.6,1900.9,3.48626575]
[1772298981436,3.59996578,1901.6,1900.9,3.48626575]
[1772298981614,2.28525656,1901.5,1900.9,3.48626575]
[1772298982321,2.28525656,1901.5,1900.9,1.3151665]
[1772298983722,3.60007721,1901.4,1901.0,0.0011]
[1772298983918,2.28625656,1901.5,1901.0,0.0011]
[1772298986422,2.28525656,1901.3,1901.0,0.0011]
[1772298987179,2.28525656,1901.3,1900.7,0.0011]
[1772298988428,2.28525656,1901.1,1900.7,0.0011]
[1772298991471,2.28525656,1901.0,1900.7,0.0011]
[1772298993954,3.60036326,1901.0,1900.7,0.0011]
[1772298996177,2.28525656,1900.9,1900.3,0.0011]
[1772298997471,2.28525656,1900.7,1900.1,0.0011]
[1772298997669,2.28525656,1900.5,1900.1,0.0011]
[1772298998178,2.28525656,1900.4,1900.1,0.0011]
[1772299001053,3.60083831,1900.3,1900.1,0.0011]
[1772299001390,2.28525656,1900.2,1899.9,0.0011]
[1772299001587,2.28525656,1900.1,1899.9,0.0011]
[1772299003166,3.60102232,1900.1,1899.9,0.0011]
[1772299003369,3.60102232,1900.1,1899.6,1.31716107]
[1772299003370,2.28525656,1900.0,1899.6,0.0011]
[1772299005581,3.6011084,1900.0,1899.6,0.0011]
[1772299008592,2.06263807,1899.9,1899.6,0.0011]
[1772299008790,2.28,1900.5,1899.7,1.98385209]
[1772299008962,2.28,1900.5,1900.0,1.98385209]
[1772299010081,3.37787376,1900.8,1900.0,1.98385209]
[1772299010402,3.37787376,1900.8,1900.2,1.97801426]
[1772299010568,3.37787376,1900.8,1900.3,1.31558175]
[1772299011370,3.37787376,1900.8,1900.2,1.97801426]
[1772299011574,3.37787376,1900.8,1900.2,3.29366031]
[1772299011575,2.06263807,1900.7,1900.2,3.29366031]
[1772299011987,2.06263807,1900.7,1899.8,1.9664291]
[1772299012299,2.06263807,1900.7,1899.9,1.9664291]
[1772299012598,2.06263807,1900.7,1900.0,1.31578947]
[1772299012599,2.06263807,1900.5,1900.0,1.31578947]
[1772299013600,4.34163807,1900.4,1899.8,3.27089136]
[1772299015271,4.34163807,1900.4,1899.9,1.9493676]
[1772299015272,2.279,1900.4,1899.9,1.9493676]
[1772299016398,3.59453439,1900.4,1899.9,1.9493676]
[1772299016605,5.65717246,1900.4,1899.9,1.9493676]
[1772299017276,3.59453439,1900.4,1899.9,1.9493676]
[1772299017481,2.06263807,1900.3,1899.8,1.31592553]
[1772299018505,2.06263807,1900.3,1899.7,7.20325641]
[1772299018679,2.06263807,1900.3,1899.7,1.31708921]
[1772299019299,3.37828905,1900.2,1899.7,1.31708921]
[1772299020204,2.06263807,1900.1,1899.7,0.0011]
[1772299020581,2.279,1900.0,1899.7,0.0011]
[1772299020787,2.06263807,1899.9,1899.7,0.0011]
[1772299020987,3.37828905,1900.2,1899.7,0.0011]
[1772299021286,2.06263807,1900.1,1899.7,0.0011]
[1772299022192,3.37842754,1900.0,1899.7,0.0011]
[1772299022381,2.06263807,1900.0,1899.7,0.0011]
[1772299023000,2.06263807,1900.0,1899.5,0.0011]
[1772299024782,3.37849679,1899.9,1899.5,0.0011]
[1772299026805,2.06263807,1899.8,1899.5,0.0011]
[1772299028900,3.37863253,1899.8,1899.5,0.0011]
[1772299029100,2.06263807,1899.7,1898.7,1.87634742]
[1772299029419,1.31599446,1899.8,1898.9,1.31764871]
[1772299029420,2.06263807,1899.5,1898.9,1.31764871]
[1772299029812,2.06263807,1899.5,1898.9,0.0011]
[1772299031197,2.06263807,1899.3,1898.9,0.0011]
[1772299033042,2.06263807,1899.3,1898.5,1.85620626]
[1772299033408,2.06263807,1899.1,1898.5,3.17297285]
[1772299033609,4.34363807,1899.1,1898.5,3.17297285]
[1772299033960,2.281,1899.1,1898.6,1.85122807]
[1772299034234,2.06263807,1899.4,1898.8,1.85122807]
[1772299034811,2.06263807,1899.4,1898.6,1.84631548]
[1772299035015,2.06263807,1899.4,1899.0,0.0011]
[1772299035333,2.06263807,1899.2,1898.4,7.11371911]
[1772299035520,2.06263807,1899.1,1898.4,1.84631548]
[1772299035698,2.06263807,1899.1,1898.9,0.0011]
[1772299035895,2.06263807,1899.1,1898.7,0.0011]
[1772299037017,2.06263807,1899.1,1898.2,11.06914227]
[1772299037018,2.06263807,1899.1,1898.2,7.63562159]
[1772299037217,2.06263807,1899.1,1898.2,5.15838516]
[1772299038003,1.94316014,1898.9,1898.2,5.15838516]
[1772299038198,1.94316014,1898.9,1898.2,4.64100486]
[1772299038436,1.94316014,1898.9,1898.2,3.32397195]
[1772299038730,1.94316014,1898.7,1898.2,3.32397195]
[1772299039431,1.94316014,1898.7,1897.9,1.31723172]
[1772299039632,1.94316014,1898.7,1898.0,1.82012286]
[1772299040026,1.94316014,1898.5,1898.0,3.13729636]
[1772299040331,3.2598505,1898.7,1898.1,1.82012286]
[1772299040507,5.5398505,1898.7,1898.1,1.82012286]
[1772299042740,5.5398505,1898.7,1898.1,3.13722613]
[1772299043440,5.5398505,1898.7,1898.1,1.82012286]
[1772299043647,5.5398505,1898.7,1898.1,3.13722345]
[1772299043852,1.94316014,1898.6,1898.1,3.13722345]
[1772299044345,1.94316014,1898.6,1898.1,3.13722195]
[1772299044845,3.25998486,1898.6,1898.1,3.13722195]
[1772299045215,1.94316014,1898.5,1897.9,1.79678304]
[1772299045413,1.94316014,1898.5,1897.8,1.31730127]
[1772299045720,1.94316014,1898.5,1897.9,1.79220694]
[1772299045852,1.31682472,1898.6,1897.9,1.79220694]
[1772299046426,1.94316014,1898.6,1897.9,1.79220694]
[1772299046849,3.25980766,1898.8,1898.1,1.78765174]
[1772299047157,3.59664752,1898.8,1898.1,1.78765174]
[1772299047459,1.94316014,1898.7,1898.2,0.72197769]
[1772299048751,1.94316014,1898.7,1898.2,2.50060144]
[1772299048958,0.001,1898.8,1898.4,2.50060144]
[1772299049170,0.001,1898.8,1898.6,0.72197769]
[1772299050464,2.28,1899.1,1898.7,1.76869558]
[1772299050638,0.72197769,1899.5,1898.7,1.76869558]
[1772299050639,1.94316014,1899.5,1898.7,1.76869558]
[1772299050963,1.94316014,1899.5,1898.6,0.72197769]
[1772299050964,1.94316014,1899.5,1899.1,1.31641303]
[1772299051462,3.25929959,1899.5,1898.9,3.08519341]
[1772299051661,1.94316014,1899.5,1898.9,3.08519341]
[1772299052033,3.25930609,1899.5,1898.9,3.08519341]
[1772299052274,1.94316014,1899.4,1898.9,3.08523984]
[1772299053034,3.25938305,1899.4,1898.9,3.08523984]
[1772299053429,3.25938305,1899.4,1898.9,1.31654426]
[1772299054035,1.94316014,1899.4,1898.9,1.31654426]
[1772299054453,1.94316014,1899.4,1898.9,3.07210958]
[1772299054656,3.25939695,1899.4,1898.9,1.31654426]
[1772299055266,1.94316014,1899.3,1898.7,1.75122494]
[1772299055668,1.31623681,1899.4,1898.7,1.75122494]
[1772299056164,3.25939695,1899.4,1898.7,1.75122494]
[1772299057771,3.25939695,1899.4,1898.8,3.05499967]
[1772299058660,3.25939695,1899.4,1898.9,1.73414141]
[1772299058966,1.94316014,1899.4,1898.9,1.73414141]
[1772299059170,3.25914461,1899.8,1899.1,1.73414141]
[1772299059945,3.25914461,1899.8,1899.2,3.04626693]
[1772299060147,1.94316014,1899.7,1899.2,3.04626693]
[1772299060369,0.001,1899.3,1899.2,3.04626693]
[1772299061872,0.001,1899.3,1899.0,1.72158626]
[1772299062076,0.001,1899.3,1899.0,3.03806107]
[1772299063877,0.001,1899.3,1899.1,1.71334193]
[1772299064176,0.001,1899.3,1899.1,3.02973259]
[1772299065381,0.001,1899.3,1899.0,1.31644226]
[1772299065767,1.96045206,1899.3,1898.8,0.0011]
[1772299068087,1.95721343,1899.1,1898.8,0.0011]
[1772299068459,1.88745645,1899.1,1898.8,0.0011]
[1772299070576,5.54772808,1899.0,1898.6,1.75922116]
[1772299070980,1.95721343,1898.9,1898.5,0.0011]
[1772299071886,3.27378315,1898.9,1898.5,1.31791952]
[1772299072064,1.95721343,1898.8,1898.5,1.31791952]
[1772299072260,1.95721343,1898.8,1898.5,0.0011]
[1772299073094,1.95721343,1898.8,1898.7,0.0011]
[1772299073692,4.23221343,1899.0,1898.7,0.0011]
[1772299073893,5.54871256,1899.0,1898.7,0.0011]
[1772299074091,0.001,1899.0,1898.7,0.0011]
[1772299074290,0.001,1899.0,1898.7,1.74501295]
[1772299074890,0.001,1899.0,1898.7,0.0011]
[1772299074891,1.31748265,1899.0,1898.7,0.0011]
[1772299075093,1.95721343,1898.9,1898.7,0.0011]
[1772299075392,1.95721343,1898.9,1898.5,0.0011]
[1772299075600,1.95721343,1898.9,1898.5,3.05538861]
[1772299075900,1.31748265,1899.0,1898.6,1.73747075]
[1772299076197,1.31748265,1899.0,1898.5,0.0011]
[1772299076198,1.95721343,1898.9,1898.5,0.0011]
[1772299078417,0.001,1899.0,1898.5,1.73113159]
[1772299078573,2.278,1899.0,1898.5,1.73113159]
[1772299079069,0.001,1899.0,1898.5,1.73113159]
[1772299079276,0.001,1899.0,1898.7,1.72632151]
[1772299079583,1.31748436,1899.0,1898.5,1.72374024]
[1772299079777,1.31750808,1899.0,1898.5,1.72374024]
[1772299080086,3.27472151,1899.0,1898.5,1.72374024]
[1772299080397,1.95821343,1899.0,1898.6,1.31675971]
[1772299080806,0.001,1899.0,1898.7,1.71897218]
[1772299081302,0.001,1899.3,1898.8,1.71797218]
[1772299081503,1.95721343,1899.5,1898.9,1.71797218]
[1772299081802,3.27335488,1899.5,1898.9,1.71797218]
[1772299082683,1.95721343,1899.4,1899.0,1.31648235]
[1772299083491,1.95721343,1899.4,1899.0,3.02357786]
[1772299085186,0.001,1899.3,1899.0,3.02357786]
[1772299085383,0.001,1899.3,1899.1,1.70349594]
[1772299085581,1.95721343,1899.8,1899.2,1.70349594]
[1772299086187,2.274,1899.8,1899.2,1.70349594]
[1772299086410,1.95721343,1899.7,1899.2,1.70349594]
[1772299086609,1.95721343,1899.5,1899.0,1.69637438]
[1772299086903,1.95721343,1899.5,1898.9,5.26620085]
[1772299087096,1.95721343,1899.5,1898.9,6.96257523]
[1772299087406,4.23121343,1899.9,1899.3,1.69637438]
[1772299087605,1.95821343,1899.9,1899.3,1.69637438]
[1772299088283,0.001,1899.9,1899.3,1.69637438]
[1772299088484,1.95821343,1899.9,1899.3,1.69637438]
[1772299088694,1.95721343,1899.8,1899.4,1.31620511]
[1772299088900,0.001,1899.9,1899.4,3.00553091]
[1772299089207,3.27407693,1899.9,1899.4,3.00553091]
[1772299089501,1.3168635,1899.9,1899.4,3.00553091]
[1772299089703,0.001,1899.9,1899.5,1.68582028]
[1772299093010,1.95821343,1899.9,1899.1,1.67544182]
[1772299093176,1.95821343,1899.9,1898.9,2.99194993]
[1772299095016,1.95721343,1899.7,1898.9,2.99194993]
[1772299095215,1.95721343,1899.5,1898.9,2.99194993]
[1772299096795,1.95721343,1899.5,1899.0,0.0011]
[1772299097183,3.18243129,1899.4,1899.0,0.0011]
[1772299098414,0.001,1899.8,1899.3,1.65743773]
[1772299099082,0.001,1899.8,1899.4,2.9703117]
[1772299100615,1.86722618,1899.8,1899.1,5.26546724]
[1772299100816,1.86722618,1899.8,1899.2,1.64750576]
[1772299101518,1.86622618,1899.7,1899.2,2.96379774]
[1772299103095,1.86622618,1899.7,1899.0,2.95850697]
[1772299103619,1.86622618,1899.5,1899.0,1.31755204]
[1772299103825,1.86622618,1899.5,1899.0,1.3175789]
[1772299104188,1.86622618,1899.5,1899.0,0.0011]
[1772299104392,1.86622618,1899.5,1899.0,1.31756847]
[1772299105320,1.86622618,1899.5,1899.0,0.0011]
[1772299105627,3.18243129,1899.4,1899.0,0.0011]
[1772299106410,3.18231734,1899.6,1899.0,1.63235404]
[1772299108423,3.18231734,1899.6,1899.0,2.94878169]
[1772299109498,1.86622618,1899.5,1899.1,0.0011]
[1772299110599,3.18241898,1899.5,1899.1,0.0011]
[1772299114150,1.86622618,1899.5,1899.1,1.60710125]
[1772299114742,3.18236851,1899.5,1899.1,1.60710125]
[1772299115956,3.18236851,1899.5,1899.1,2.9234916]
[1772299117929,3.18236851,1899.5,1899.1,2.92350761]
[1772299119264,1.86622618,1899.4,1899.1,0.0011]
[1772299120063,1.86622618,1899.6,1899.2,1.58769498]
[1772299120563,1.86622618,1899.5,1899.1,0.0011]
[1772299122140,3.58708485,1899.6,1899.1,2.89923356]
[1772299122459,3.18243129,1899.4,1899.1,0.0011]
[1772299122863,3.18243129,1899.4,1899.2,0.0011]
[1772299123029,3.18343129,1899.4,1899.2,0.0011]
[1772299123655,1.86722618,1899.4,1899.2,0.0011]
[1772299124059,0.001,1899.4,1899.2,1.57688429]
[1772299125269,0.001,1899.4,1899.2,0.0011]
[1772299125579,0.001,1899.4,1899.2,1.57321024]
[1772299129781,0.001,1899.4,1899.2,1.31744091]
[1772299129978,3.12996553,1899.7,1899.3,1.55697432]
[1772299130356,3.12997241,1899.7,1899.3,1.55697432]
[1772299130881,1.81296179,1899.6,1899.3,1.55697432]
[1772299131064,1.81296179,1899.6,1899.2,0.0011]
[1772299132655,1.81296179,1899.6,1899.2,1.54855961]
[1772299133585,1.31613582,1899.5,1899.2,1.54855961]
[1772299134084,3.12909761,1899.5,1899.2,1.54855961]
[1772299135084,3.12909761,1899.5,1899.2,0.0011]
[1772299136085,3.12909761,1899.5,1899.3,0.0011]
[1772299136384,3.13009761,1899.5,1899.3,0.0011]
[1772299139387,5.40909761,1899.5,1899.3,0.0011]
[1772299139801,5.40909929,1899.5,1899.3,0.0011]
[1772299142801,3.1291669,1899.4,1899.3,0.0011]
[1772299147009,1.81296179,1899.3,1899.1,0.0011]
[1772299147212,1.81296179,1899.1,1898.7,0.0011]
[1772299147380,1.81296179,1899.1,1898.7,1.50543625]
[1772299147704,1.81296179,1899.1,1898.7,0.0011]
[1772299148410,0.001,1899.3,1898.9,1.50073793]
[1772299148708,0.001,1899.3,1899.1,1.49846232]
[1772299151708,0.001,1899.3,1899.1,2.8148651]
[1772299151892,0.001,1899.3,1899.1,1.49846232]
[1772299152488,0.001,1899.5,1899.2,1.48329945]
[1772299152693,1.81396179,1899.5,1899.1,2.80079815]
[1772299153811,1.81396179,1899.5,1899.2,1.47982776]
[1772299154211,3.1301006,1899.5,1899.2,1.47982776]
[1772299154417,1.81396179,1899.5,1899.2,1.47982776]
[1772299155512,0.001,1899.5,1899.2,1.47982776]
[1772299155687,0.001,1899.7,1899.3,1.47198504]
[1772299155888,0.001,1899.7,1899.4,1.47198504]
[1772299157690,1.75572271,1899.7,1899.4,1.47198504]
[1772299158347,3.07172263,1899.7,1899.3,1.46386709]
[1772299158518,1.75572271,1899.7,1899.3,1.46386709]
[1772299159482,3.07172105,1899.7,1899.3,1.46386709]
[1772299159885,1.75572271,1899.7,1899.3,1.46386709]
[1772299160298,3.07172055,1899.7,1899.4,1.45827266]
[1772299160499,0.001,1899.6,1899.4,1.45827266]
[1772299162819,0.001,1899.6,1899.5,1.44727097]
[1772299163125,0.001,1899.8,1899.6,1.44627097]
[1772299163287,3.07147945,1900.1,1899.7,2.16742071]
[1772299163733,1.75572271,1900.1,1899.8,1.44300498]
[1772299163898,0.001,1900.1,1899.8,1.44300498]
[1772299164293,0.001,1900.1,1899.9,3.48001344]
[1772299164625,0.001,1900.1,1900.0,1.44300498]
[1772299164825,1.75472271,1900.6,1900.1,1.43986843]
[1772299165022,1.31530488,1900.7,1900.2,1.43986843]
[1772299165327,1.75472271,1900.6,1900.2,1.43986843]
[1772299165502,1.75472271,1900.6,1900.1,0.72114974]
[1772299165846,1.75472271,1900.6,1900.1,2.15778566]
[1772299165993,1.75472271,1900.6,1900.2,1.43663592]
[1772299166195,1.75472271,1900.6,1900.2,2.75224077]
[1772299166922,3.07010428,1900.6,1900.2,2.75224077]
[1772299168122,1.75472271,1900.5,1900.1,0.72114974]
[1772299168309,1.75472271,1900.6,1900.0,1.43025301]
[1772299168509,3.0701321,1900.6,1900.1,2.15140275]
[1772299168714,3.0701321,1900.6,1900.2,1.42708086]
[1772299169111,1.75472271,1900.6,1900.2,2.1482306]
[1772299169314,3.07010785,1900.6,1900.2,2.1482306]
[1772299169642,1.75472271,1900.5,1899.8,3.46099711]
[1772299170014,1.75472271,1900.3,1899.6,5.42626602]
[1772299170220,1.75472271,1900.1,1899.6,6.74231954]
[1772299170436,1.315636,1900.3,1900.0,0.72114974]
[1772299170928,1.75472271,1900.2,1899.8,0.72114974]
[1772299171635,1.75472271,1900.2,1899.7,1.42077788]
[1772299172007,1.75472271,1900.4,1900.0,2.13880213]
[1772299172421,1.75472271,1900.4,1900.0,3.4545345]
[1772299172634,3.07024673,1900.4,1900.0,1.41765239]
[1772299172838,3.07124673,1900.4,1899.9,3.45152656]
[1772299173821,1.75472271,1900.2,1899.6,3.2811969]
[1772299174420,3.07044293,1900.1,1899.6,4.59726131]
[1772299175023,1.75472271,1900.1,1899.7,1.40839576]
[1772299176141,1.75472271,1900.1,1899.6,3.2811969]
[1772299176441,1.75472271,1900.0,1899.6,4.59725583]
[1772299178646,3.07052508,1900.0,1899.6,4.59725583]
[1772299180224,3.07052508,1900.0,1899.6,5.99054295]
[1772299180455,9.30716247,1900.3,1899.7,1.39328712]
[1772299181955,1.75472271,1900.2,1899.7,1.39328712]
[1772299182351,1.31572022,1900.1,1899.7,1.39328712]
[1772299182660,3.07044293,1900.1,1899.7,1.39328712]
[1772299183157,1.75472271,1900.0,1899.6,4.59725583]
[1772299183567,1.75472271,1900.0,1899.6,5.97876505]
[1772299183971,1.75472271,1900.0,1899.6,4.66270612]
[1772299184125,1.75472271,1900.0,1899.6,5.97877209]
[1772299185286,1.85610354,1899.9,1899.6,3.2811969]
[1772299185836,1.85610354,1899.9,1899.7,0.0011]
[1772299187885,1.31592799,1899.8,1899.7,0.0011]
[1772299188777,3.05735107,1899.8,1899.7,0.0011]
[1772299196547,1.74142308,1899.7,1899.6,2.28763507]
[1772299196747,4.04442308,1899.7,1899.6,2.28763507]
[1772299197167,4.04442308,1899.7,1899.6,1e-08]
[1772299197673,3.61892799,1899.8,1899.6,1e-08]
[1772299197870,3.05735107,1899.8,1899.6,1e-08]
[1772299198086,5.36135107,1899.8,1899.6,1e-08]
[1772299198280,0.001,1899.7,1899.6,1e-08]
[1772299199777,1.74242308,1899.7,1899.6,1e-08]
[1772299200156,1.74242308,1899.7,1899.5,0.0011]
[1772299200357,3.05748962,1899.6,1899.5,0.0011]
[1772299200891,1.74142308,1899.6,1899.5,0.0011]
[1772299201384,1.31704182,1899.7,1899.5,0.0011]
[1772299202197,3.0584649,1899.7,1899.5,0.0011]
[1772299202380,3.05748962,1899.6,1899.5,0.0011]
[1772299202691,0.001,1899.7,1899.5,1.4242839]
[1772299203669,3.05842092,1899.7,1899.5,0.0011]
[1772299204207,1.74142308,1899.5,1899.1,0.0011]
[1772299204409,1.31620511,1899.4,1899.1,0.0011]
[1772299204571,1.74142308,1899.3,1899.1,0.0011]
[1772299204773,1.74142308,1899.2,1899.1,0.0011]
[1772299206665,3.0577668,1899.2,1899.1,0.0011]
[1772299207101,3.0577668,1899.2,1898.7,0.0011]
[1772299207314,1.74142308,1899.1,1898.7,0.0011]
[1772299207730,2.46258636,1899.3,1898.7,1.4066703]
[1772299207931,3.90962819,1899.4,1899.0,1.4055703]
[1772299208141,2.59342308,1899.3,1899.0,1.4055703]
[1772299208627,1.31620511,1899.4,1899.0,1.4055703]
[1772299210317,3.05762819,1899.4,1899.0,1.4055703]
[1772299213020,3.05854108,1899.6,1899.1,1.38735241]
[1772299213620,0.001,1899.6,1899.1,3.60677406]
[1772299213798,0.001,1899.6,1899.2,1.38376113]
[1772299216574,1.83695947,1899.6,1899.0,2.144]
[1772299216856,1.83695947,1899.6,1898.8,0.0011]
[1772299217056,1.89045449,1899.4,1898.8,0.0011]
[1772299218215,1.89045449,1899.4,1898.7,0.0011]
[1772299218614,1.89045449,1899.0,1898.7,0.0011]
[1772299218818,1.89045449,1898.9,1898.7,0.0011]
[1772299219321,1.89045449,1898.9,1898.5,0.0011]
[1772299220726,1.31659814,1898.9,1898.5,0.02005711]
[1772299220928,3.20705263,1898.9,1898.5,0.02005711]
[1772299221749,1.89045449,1898.9,1898.5,0.02005711]
[1772299221955,1.31651162,1899.0,1898.5,0.02005711]
[1772299222455,3.20696611,1899.0,1898.5,0.02005711]
[1772299222950,1.31641303,1899.1,1898.8,0.0011]
[1772299223323,3.20686752,1899.1,1898.8,0.0011]
[1772299223846,1.89045449,1899.0,1898.8,0.0011]
[1772299224849,1.31655168,1898.9,1898.8,0.0011]
[1772299225151,3.20700617,1898.9,1898.7,0.0011]
[1772299225731,1.89045449,1898.9,1898.7,0.0011]
[1772299226053,3.20693684,1899.0,1898.7,0.0011]
[1772299228536,1.89045449,1898.9,1898.7,0.0011]
[1772299229562,3.20707551,1898.8,1898.7,0.0011]
[1772299230229,1.89045449,1898.8,1898.7,0.0011]
[1772299230429,2.323,1899.0,1898.7,0.0011]
[1772299231630,1.31655168,1898.9,1898.7,0.0011]
[1772299233057,5.52993684,1899.0,1898.7,0.0011]
[1772299234864,1.89045449,1898.9,1898.7,0.0011]
[1772299235629,1.89045449,1898.9,1898.8,0.0011]
[1772299235835,3.20700617,1898.9,1898.8,0.0011]
[1772299237467,1.31655168,1898.9,1898.8,0.0011]
[1772299238061,3.20700617,1898.9,1898.8,0.0011]
[1772299238474,1.88990449,1898.8,1898.7,0.0011]
[1772299239141,1.88990449,1898.8,1898.5,0.0011]
[1772299240166,3.20659485,1898.7,1898.5,0.0011]
[1772299240994,1.88990449,1898.6,1898.5,0.0011]
[1772299241171,4.22290449,1898.6,1898.5,0.0011]
[1772299242162,4.22290449,1898.6,1898.0,2.3995934]
[1772299242369,5.54072275,1898.6,1898.0,2.3995934]
[1772299242869,1.31674277,1898.7,1898.0,2.3995934]
[1772299243065,3.65074277,1898.7,1898.0,2.3995934]
[1772299243370,5.54064726,1898.7,1898.0,2.3995934]
[1772299244067,5.54064726,1898.7,1897.9,4.01249416]
[1772299244068,1.88990449,1898.6,1897.9,4.01249416]
[1772299244240,3.20673356,1898.5,1897.9,4.01249416]
[1772299245452,1.88990449,1898.4,1897.9,4.01249416]
[1772299246055,1.88990449,1898.4,1897.9,1.31723657]
[1772299246453,1.31696781,1898.3,1897.9,1.31723657]
[1772299247576,1.31696781,1898.3,1898.0,0.0011]
[1772299247784,3.20680293,1898.4,1898.0,0.0011]
[1772299247957,1.88990449,1898.3,1898.0,0.0011]
[1772299248655,3.20694168,1898.2,1898.0,0.0011]
[1772299249050,1.88990449,1898.1,1898.0,0.0011]
[1772299250863,3.20701107,1898.1,1898.0,0.0011]
[1772299252287,1.88990449,1898.1,1897.7,1.47262267]
[1772299252486,4.22680449,1898.0,1897.7,0.155242]
[1772299253203,1.88880449,1898.0,1897.7,0.155242]
[1772299254269,1.88880449,1898.0,1897.1,2.40022436]
[1772299254470,1.88880449,1898.2,1897.3,1.08246698]
[1772299254675,1.88880449,1897.9,1897.3,1.08246698]
[1772299255561,1.88880449,1897.9,1897.4,0.02293724]
[1772299256460,3.20605875,1897.9,1897.5,0.02293724]
[1772299258587,1.88880449,1897.8,1897.5,0.0157163]
[1772299258785,3.20589158,1898.2,1897.6,0.0157163]
[1772299259889,1.88880449,1898.2,1897.6,0.0157163]
[1772299260511,1.88880449,1898.2,1897.8,0.01332407]
[1772299260666,3.65394091,1898.4,1898.0,0.01093672]
[1772299260667,1.88980449,1898.4,1898.0,0.01093672]
[1772299260865,0.001,1898.4,1898.0,0.01093672]
[1772299262779,0.001,1898.4,1898.2,0.00411537]
[1772299263588,0.001,1898.4,1898.1,1.31710658]
[1772299265297,0.001,1898.4,1898.1,1.08246698]
[1772299267296,0.001,1898.4,1898.2,1.31703719]
[1772299269901,0.001,1898.4,1898.1,5.2683317]
[1772299271032,1.88880449,1898.8,1898.2,1.08246698]
[1772299271899,3.20549485,1898.7,1898.2,1.08246698]
[1772299272095,3.20549485,1898.7,1898.2,2.39946]
[1772299272399,1.88880449,1898.7,1898.2,2.39946]
[1772299272601,1.88980449,1898.7,1898.2,2.39946]
[1772299273578,1.88980449,1898.7,1898.2,1.3170235]
[1772299274272,1.88880449,1898.6,1898.2,1.3170235]
[1772299276504,1.88880449,1898.5,1898.2,1.3170235]
[1772299276876,3.20654754,1898.7,1898.2,1.3170235]
[1772299277109,1.88980449,1898.7,1898.2,1.3170235]
[1772299277406,3.20649745,1898.7,1898.2,1.3170235]